[Event "9th Sharjah Cup Women 2018"]
[Site "Sharjah"]
[Date "2018.12.15"]
[Round "3"]
[White "Gu, Xiaobing"]
[Black "Berke, Ana"]
[Result "1-0"]
[ECO "B40"]
[WhiteElo "2295"]
[BlackElo "2151"]
[Annotator "NA"]
[PlyCount "102"]
[EventDate "2018.12.14"]
[EventType "swiss"]
[EventCountry "UAE"]
[SourceTitle "playchess.com"]
[Source "ChessBase"]
[SourceQuality "1"]
[TimeControl "5400+30"]

1. e4 {[%emt 0:00:00]} c5 {[%emt 0:00:00]} 2. Nf3 {[%emt 0:00:00]} e6 {[%emt 0:00:00]} 3. c3 {[%emt 0:04:16]} Nf6 {[%emt 0:00:30]} 4. e5 {[%emt 0:01:10]} Nd5 {[%emt 0:03:36]} 5. Bc4 {[%emt 0:00:26]} Nc6 {[%emt 0:01:17]} 6. O-O {[%emt 0:04:44]} d6 {[%emt 0:05:43]} 7. d4 {[%emt 0:02:08]} cxd4 {[%emt 0:00:09]} 8. cxd4 {[%emt 0:00:12]} Be7 {[%emt 0:00:39]} 9. Qe2 {[%emt 0:02:24]} O-O {[%emt 0:01:22]} 10. Rd1 {[%emt 0:00:19]} a6 {[%emt 0:05:55]} 11. a3 {[%emt 0:02:16]} b5 {[%emt 0:02:07]} 12. Bb3 {[%emt 0:01:09]} Bb7 {[%emt 0:13:38]} 13. Nbd2 {[%emt 0:04:16]} Qc7 {[%emt 0:04:35]} 14. Bxd5 {[%emt 0:09:56]} exd5 {[%emt 0:00:14]} 15. Nf1 {[%emt 0:00:46]} Rad8 {[%emt 0:07:55]} 16. Bf4 {[%emt 0:04:21]} Qd7 {[%emt 0:03:37]} 17. Rd3 {[%emt 0:09:36]} Qg4 {[%emt 0:18:44]} 18. Qd2 {[%emt 0:03:36]} a5 {[%emt 0:08:51]} 19. exd6 {[%emt 0:09:05]} Bxd6 {[%emt 0:00:18]} 20. Ne5 {[%emt 0:02:56]} Bxe5 {[%emt 0:06:02]} 21. dxe5 {[%emt 0:00:05]} Qe6 {[%emt 0:01:07]} 22. Re1 {[%emt 0:00:46]} Rfe8 {[%emt 0:02:38]} 23. Bg5 {[%emt 0:03:21]} f6 {[%emt 0:05:20]} 24. Bh4 {[%emt 0:00:05]} Rd7 {[%emt 0:02:52]} 25. f4 {[%emt 0:00:09]} fxe5 {[%emt 0:00:28]} 26. fxe5 {[%emt 0:00:21]} d4 {[%emt 0:01:15]} 27. Bg3 {[%emt 0:04:30]} Rf7 {[%emt 0:00:18]} 28. Qc2 {[%emt 0:00:40]} Qc4 {[%emt 0:01:31]} 29. Qd1 {[%emt 0:05:38]} Rfe7 {[%emt 0:00:37]} 30. b3 {[%emt 0:01:17]} Qc5 {[%emt 0:01:06]} 31. Qc1 {[%emt 0:01:28]} Qxc1 {[%emt 0:00:22]} 32. Rxc1 {[%emt 0:00:02]} b4 {[%emt 0:01:13]} 33. axb4 {[%emt 0:00:06]} axb4 {[%emt 0:00:09]} 34. Nd2 {[%emt 0:00:30]} Ba6 {[%emt 0:01:34]} 35. Nc4 {[%emt 0:00:19]} Bxc4 {[%emt 0:00:38]} 36. Rxc4 {[%emt 0:00:59]} Nxe5 {[%emt 0:00:06]} 37. Bxe5 {[%emt 0:00:04]} Rxe5 {[%emt 0:00:03]} 38. Rcxd4 {[%emt 0:02:43]} Rf8 {[%emt 0:00:30]} 39. h4 {[%emt 0:00:51]} Rb5 {[%emt 0:00:51]} 40. Re4 {[%emt 0:01:31]} Rb7 {[%emt 0:00:21]} 41. Rdd4 {[%emt 0:00:54]} Rfb8 {[%emt 0:00:06]} 42. Rf4 {[%emt 0:01:09]} g6 {[%emt 0:00:12]} 43. Kf2 {[%emt 0:02:21]} Kg7 {[%emt 0:00:50]} 44. Ke3 {[%emt 0:00:07]} Rc8 {[%emt 0:01:15]} 45. Rc4 {[%emt 0:00:06]} Rcb8 {[%emt 0:00:12]} 46. g4 {[%emt 0:00:18]} Re8+ {[%emt 0:01:29]} 47. Kd3 {[%emt 0:00:36]} Rd8+ {[%emt 0:00:16]} 48. Rcd4 {[%emt 0:00:25]} Rdb8 {[%emt 0:00:05]} 49. g5 {[%emt 0:02:09]} Kg8 {[%emt 0:00:40]} 50. Rd5 {[%emt 0:00:45]} Kg7 {[%emt 0:00:28]} 51. Rfd4 {[%emt 0:00:21]} Kf7 {[%emt 0:01:00]} 1-0

[Event "9th Sharjah Cup Women 2018"]
[Site "Sharjah"]
[Date "2018.12.15"]
[Round "3"]
[White "Nguyen, Thi Mai Hung"]
[Black "Ovezdurdiyeva, Jemal"]
[Result "1-0"]
[ECO "A45"]
[WhiteElo "2280"]
[BlackElo "2114"]
[Annotator "NA"]
[PlyCount "53"]
[EventDate "2018.12.14"]
[EventType "swiss"]
[EventCountry "UAE"]
[SourceTitle "playchess.com"]
[Source "ChessBase"]
[SourceQuality "1"]
[TimeControl "5400+30"]

1. d4 {[%emt 0:00:00]} Nf6 {[%emt 0:00:00]} 2. Bf4 {[%emt 0:00:00]} g6 {[%emt 0:00:00]} 3. e3 {[%emt 0:00:00]} Bg7 {[%emt 0:00:00]} 4. Nf3 {[%emt 0:00:02]} d6 {[%emt 0:00:12]} 5. c3 {[%emt 0:01:29]} O-O {[%emt 0:04:34]} 6. Nbd2 {[%emt 0:02:01]} c5 {[%emt 0:06:07]} 7. Be2 {[%emt 0:02:46]} cxd4 {[%emt 0:05:17]} 8. exd4 {[%emt 0:00:41]} Nc6 {[%emt 0:00:37]} 9. O-O {[%emt 0:00:47]} Re8 {[%emt 0:09:13]} 10. Nc4 {[%emt 0:10:26]} Nd5 {[%emt 0:05:21]} 11. Bg3 {[%emt 0:02:57]} e5 {[%emt 0:16:23]} 12. Re1 {[%emt 0:09:42]} b5 {[%emt 0:18:08]} 13. dxe5 {[%emt 0:04:17]} dxe5 {[%emt 0:00:13]} 14. Ncxe5 {[%emt 0:02:55]} Nxe5 {[%emt 0:11:48]} 15. Nxe5 {[%emt 0:07:10]} a6 {[%emt 0:03:01]} 16. Bf3 {[%emt 0:00:56]} Bb7 {[%emt 0:01:46]} 17. Qb3 {[%emt 0:03:18]} Rc8 {[%emt 0:05:41]} 18. Rad1 {[%emt 0:05:51]} Rc5 {[%emt 0:00:49]} 19. h3 {[%emt 0:09:31]} Ba8 {[%emt 0:05:20]} 20. Nd3 {[%emt 0:06:36]} Rc4 {[%emt 0:03:53]} 21. Ne5 {[%emt 0:05:31]} Rc5 {[%emt 0:00:27]} 22. a4 {[%emt 0:06:14]} Re6 {[%emt 0:01:39]} 23. Nd3 {[%emt 0:02:37]} bxa4 {[%emt 0:00:27]} 24. Qa2 {[%emt 0:03:35]} Rc8 {[%emt 0:00:21]} 25. Bg4 Rxe1+ {[%emt 0:00:23]} 26. Nxe1 {[%emt 0:03:19]} f5 {[%emt 0:00:49]} 27. Bf3 {[%emt 0:00:18]} 1-0

[Event "9th Sharjah Cup Women 2018"]
[Site "Sharjah"]
[Date "2018.12.15"]
[Round "3"]
[White "Enkhtuul, Altan-Ulzii"]
[Black "Asatryan, Sona"]
[Result "1-0"]
[ECO "A46"]
[WhiteElo "2267"]
[BlackElo "2089"]
[Annotator "NA"]
[PlyCount "61"]
[EventDate "2018.12.14"]
[EventType "swiss"]
[EventCountry "UAE"]
[SourceTitle "playchess.com"]
[Source "ChessBase"]
[SourceQuality "1"]
[TimeControl "5400+30"]

1. d4 {[%emt 0:00:00]} Nf6 {[%emt 0:00:00]} 2. Nf3 {[%emt 0:00:00]} d5 {[%emt 0:00:04]} 3. c4 {[%emt 0:00:16]} e6 {[%emt 0:00:12]} 4. g3 {[%emt 0:00:09]} Bb4+ {[%emt 0:00:16]} 5. Bd2 {[%emt 0:00:33]} Bd6 {[%emt 0:00:31]} 6. Bg2 {[%emt 0:00:16]} O-O {[%emt 0:01:05]} 7. O-O {[%emt 0:02:32]} Nbd7 {[%emt 0:03:45]} 8. c5 {[%emt 0:04:38]} Be7 {[%emt 0:00:14]} 9. Qc2 {[%emt 0:00:07]} c6 {[%emt 0:02:33]} 10. Nc3 {[%emt 0:04:17]} e5 {[%emt 0:09:07]} 11. dxe5 {[%emt 0:00:51]} Ng4 {[%emt 0:01:25]} 12. Bf4 {[%emt 0:04:37]} Nxc5 {[%emt 0:06:33]} 13. h3 {[%emt 0:05:07]} g5 {[%emt 0:03:15]} 14. Bxg5 {[%emt 0:02:26]} Bxg5 {[%emt 0:06:02]} 15. hxg4 {[%emt 0:01:29]} Bxg4 {[%emt 0:03:49]} 16. Nxd5 {[%emt 0:07:14]} Bxf3 {[%emt 0:04:55]} 17. exf3 {[%emt 0:06:41]} Qxd5 {[%emt 0:03:33]} 18. f4 {[%emt 0:00:07]} Qe6 {[%emt 0:01:25]} 19. Qxc5 {[%emt 0:00:52]} Be7 {[%emt 0:00:55]} 20. Qc2 {[%emt 0:00:28]} Rad8 {[%emt 0:08:53]} 21. Be4 {[%emt 0:02:29]} h5 {[%emt 0:03:35]} 22. Qe2 {[%emt 0:05:02]} Qh6 {[%emt 0:03:51]} 23. Kg2 {[%emt 0:00:42]} f5 {[%emt 0:05:44]} 24. exf6 {[%emt 0:01:25]} Bxf6 {[%emt 0:01:22]} 25. Rh1 {[%emt 0:00:27]} h4 {[%emt 0:01:56]} 26. Qg4+ {[%emt 0:02:04]} Kf7 {[%emt 0:01:48]} 27. Bc2 {[%emt 0:00:52]} Ke7 {[%emt 0:08:00]} 28. Rae1+ {[%emt 0:00:57]} Kd6 {[%emt 0:01:19]} 29. Re6+ {[%emt 0:00:34]} Kc7 {[%emt 0:01:43]} 30. Rxh4 {[%emt 0:00:35]} Qg7 {[%emt 0:01:32]} 31. Rh7 {[%emt 0:00:29] Kd6} 1-0

[Event "9th Sharjah Cup Women 2018"]
[Site "Sharjah"]
[Date "2018.12.15"]
[Round "3"]
[White "Drljevic, Ljilja"]
[Black "Kejzar, Petra"]
[Result "0-1"]
[ECO "B30"]
[WhiteElo "2208"]
[BlackElo "2062"]
[Annotator "NA"]
[PlyCount "80"]
[EventDate "2018.12.14"]
[EventType "swiss"]
[EventCountry "UAE"]
[SourceTitle "playchess.com"]
[Source "ChessBase"]
[SourceQuality "1"]
[TimeControl "5400+30"]

1. e4 {[%emt 0:00:00]} c5 {[%emt 0:00:00]} 2. Nf3 {[%emt 0:00:30]} Nc6 {[%emt 0:00:30]} 3. d3 {[%emt 0:02:57]} g6 {[%emt 0:00:19]} 4. g3 {[%emt 0:00:29]} Bg7 {[%emt 0:00:19]} 5. Bg2 {[%emt 0:00:02]} d6 {[%emt 0:01:08]} 6. O-O {[%emt 0:00:24]} e5 {[%emt 0:01:02]} 7. c3 {[%emt 0:01:07]} Nge7 {[%emt 0:00:34]} 8. a3 {[%emt 0:00:38]} O-O {[%emt 0:03:42]} 9. b4 {[%emt 0:00:43]} a6 {[%emt 0:01:13]} 10. Nbd2 {[%emt 0:03:29]} b6 {[%emt 0:03:51]} 11. Re1 {[%emt 0:03:35]} h6 {[%emt 0:03:52]} 12. Bb2 {[%emt 0:06:39]} Bg4 {[%emt 0:08:45]} 13. Nc4 {[%emt 0:04:11]} Rc8 {[%emt 0:11:53]} 14. Ne3 {[%emt 0:03:24]} Be6 {[%emt 0:01:17]} 15. Qd2 {[%emt 0:40:22]} d5 {[%emt 0:27:02]} 16. exd5 {[%emt 0:02:37]} Nxd5 {[%emt 0:00:15]} 17. Nc4 {[%emt 0:00:31]} Qc7 {[%emt 0:00:30]} 18. bxc5 {[%emt 0:00:38]} bxc5 {[%emt 0:00:34]} 19. Rac1 {[%emt 0:20:25]} Rb8 {[%emt 0:04:49]} 20. Ba1 {[%emt 0:00:37]} Nde7 {[%emt 0:03:34]} 21. Qe2 {[%emt 0:04:53]} Bxc4 {[%emt 0:02:33]} 22. dxc4 {[%emt 0:00:02]} Rb3 {[%emt 0:01:32]} 23. Nd2 {[%emt 0:00:27]} Rxa3 {[%emt 0:01:57]} 24. Ne4 {[%emt 0:00:05]} Qa5 {[%emt 0:05:15]} 25. Bb2 {[%emt 0:01:11]} Ra2 {[%emt 0:00:15]} 26. Rc2 {[%emt 0:00:39]} Rb8 {[%emt 0:02:19]} 27. Bc1 {[%emt 0:00:38]} Nd4 {[%emt 0:01:36]} 28. Rxa2 {[%emt 0:01:40]} Nxe2+ {[%emt 0:00:06]} 29. Rexe2 {[%emt 0:00:38]} Qc7 {[%emt 0:01:42]} 30. Be3 {[%emt 0:00:26]} Rb1+ {[%emt 0:00:28]} 31. Bf1 {[%emt 0:00:01]} f5 {[%emt 0:03:55]} 32. Nxc5 {[%emt 0:00:02]} f4 {[%emt 0:00:42]} 33. gxf4 {[%emt 0:01:13]} exf4 {[%emt 0:00:38]} 34. Ne6 {[%emt 0:01:06]} Qc6 {[%emt 0:00:21]} 35. Reb2 {[%emt 0:00:34]} Rxb2 {[%emt 0:01:17]} 36. Rxb2 {[%emt 0:00:03]} Qxe6 {[%emt 0:01:26]} 37. Bxf4 {[%emt 0:00:09]} Be5 {[%emt 0:01:24]} 38. Bxh6 {[%emt 0:01:15]} Qg4+ {[%emt 0:00:28]} 39. Bg2 {[%emt 0:00:39]} Nf5 {[%emt 0:00:24]} 40. f3 {[%emt 0:00:29]} Qh4 {[%emt 0:00:31]} 0-1

[Event "9th Sharjah Cup Women 2018"]
[Site "Sharjah"]
[Date "2018.12.15"]
[Round "3"]
[White "Hallaeva, Bahar"]
[Black "Khukhashvili, Sopiko"]
[Result "1-0"]
[ECO "C55"]
[WhiteElo "2133"]
[BlackElo "2338"]
[Annotator "NA"]
[PlyCount "81"]
[EventDate "2018.12.14"]
[EventType "swiss"]
[EventCountry "UAE"]
[SourceTitle "playchess.com"]
[Source "ChessBase"]
[SourceQuality "1"]
[TimeControl "5400+30"]

1. e4 {[%emt 0:00:00]} e5 {[%emt 0:00:00]} 2. Nf3 {[%emt 0:00:00]} Nc6 {[%emt 0:00:00]} 3. Bc4 {[%emt 0:00:00]} Nf6 {[%emt 0:02:12]} 4. d3 {[%emt 0:00:00]} h6 {[%emt 0:00:04]} 5. c3 {[%emt 0:01:29]} d6 {[%emt 0:01:13]} 6. Nbd2 {[%emt 0:01:21]} g5 {[%emt 0:00:17]} 7. h3 {[%emt 0:05:52]} Bg7 {[%emt 0:01:29]} 8. Nf1 {[%emt 0:04:45]} Ne7 {[%emt 0:08:17]} 9. Ng3 {[%emt 0:07:33]} O-O {[%emt 0:07:20]} 10. Bb3 {[%emt 0:06:27]} Bd7 {[%emt 0:02:15]} 11. Be3 {[%emt 0:02:22]} Qc8 {[%emt 0:03:27]} 12. Qd2 {[%emt 0:04:04]} Ng6 {[%emt 0:01:46]} 13. O-O-O {[%emt 0:06:37]} Be6 {[%emt 0:01:55]} 14. Bxe6 {[%emt 0:01:33]} Qxe6 {[%emt 0:03:18]} 15. Kb1 {[%emt 0:01:56]} d5 {[%emt 0:05:36]} 16. h4 {[%emt 0:10:34]} g4 {[%emt 0:00:52]} 17. Bxh6 {[%emt 0:03:34]} dxe4 {[%emt 0:07:45]} 18. Bxg7 {[%emt 0:09:05]} Kxg7 {[%emt 0:00:03]} 19. Ng5 {[%emt 0:00:18]} Qc6 {[%emt 0:00:37]} 20. Nf5+ {[%emt 0:03:49]} Kh8 {[%emt 0:00:22]} 21. Ne6 {[%emt 0:01:36]} Nf4 {[%emt 0:04:41]} 22. Nxf4 {[%emt 0:03:32]} exf4 {[%emt 0:01:20]} 23. Qxf4 {[%emt 0:00:11]} Nh5 {[%emt 0:02:18]} 24. Qxg4 {[%emt 0:01:05]} Qg6 {[%emt 0:00:03]} 25. Qxe4 {[%emt 0:00:32]} Rfe8 {[%emt 0:00:32]} 26. Qf3 {[%emt 0:01:00]} Re5 {[%emt 0:00:47]} 27. g4 {[%emt 0:03:02]} Rae8 {[%emt 0:01:10]} 28. Ne3 {[%emt 0:02:40]} Ng7 {[%emt 0:00:55]} 29. h5 {[%emt 0:01:16]} Qh6 {[%emt 0:00:54]} 30. Qxf7 {[%emt 0:00:41]} R8e7 {[%emt 0:00:31]} 31. Qf8+ {[%emt 0:01:34]} Kh7 {[%emt 0:00:03]} 32. Nd5 {[%emt 0:03:43]} R7e6 {[%emt 0:00:07]} 33. f4 {[%emt 0:02:21]} Rxd5 {[%emt 0:01:52]} 34. g5 {[%emt 0:00:05]} Rxg5 {[%emt 0:00:17]} 35. fxg5 {[%emt 0:00:03]} Qxg5 {[%emt 0:00:04]} 36. Rdg1 {[%emt 0:01:03]} Rf6 {[%emt 0:00:13]} 37. Rxg5 {[%emt 0:02:16]} Rxf8 {[%emt 0:00:39]} 38. h6 {[%emt 0:00:44]} Ne6 {[%emt 0:00:30]} 39. Re5 {[%emt 0:00:08]} Rf6 {[%emt 0:00:02]} 40. d4 {[%emt 0:00:57]} c6 {[%emt 0:00:03]} 41. Ree1 {[%emt 0:02:02]} 1-0

[Event "9th Sharjah Cup Women 2018"]
[Site "Sharjah"]
[Date "2018.12.15"]
[Round "3"]
[White "Alieva, Alexandra"]
[Black "Velikic, Adela"]
[Result "0-1"]
[ECO "C07"]
[WhiteElo "2102"]
[BlackElo "2298"]
[Annotator "NA"]
[PlyCount "46"]
[EventDate "2018.12.14"]
[EventType "swiss"]
[EventCountry "UAE"]
[SourceTitle "playchess.com"]
[Source "ChessBase"]
[SourceQuality "1"]
[TimeControl "5400+30"]

1. e4 {[%emt 0:00:00]} e6 {[%emt 0:00:00]} 2. d4 {[%emt 0:00:00]} d5 {[%emt 0:00:00]} 3. Nd2 {[%emt 0:00:00]} c5 {[%emt 0:00:00]} 4. c3 {[%emt 0:00:02]} cxd4 {[%emt 0:00:00]} 5. cxd4 {[%emt 0:00:06]} dxe4 {[%emt 0:00:04]} 6. Nxe4 {[%emt 0:00:06]} Nf6 {[%emt 0:00:08]} 7. Nc3 {[%emt 0:00:06]} Bd7 {[%emt 0:01:05]} 8. Nf3 {[%emt 0:00:40]} Bc6 {[%emt 0:01:43]} 9. Bd3 {[%emt 0:06:21]} Nbd7 {[%emt 0:01:36]} 10. O-O {[%emt 0:00:28]} Be7 {[%emt 0:00:29]} 11. Bc2 {[%emt 0:05:12]} Qc7 {[%emt 0:05:05]} 12. Bg5 {[%emt 0:01:08]} O-O {[%emt 0:00:40]} 13. Qd3 {[%emt 0:01:38]} Rfd8 {[%emt 0:08:59]} 14. Bh4 {[%emt 0:14:38]} Rac8 {[%emt 0:16:50]} 15. Rfe1 {[%emt 0:14:03]} Qb6 {[%emt 0:09:26]} 16. Ng5 {[%emt 0:26:01]} Nf8 {[%emt 0:07:24]} 17. Rad1 {[%emt 0:04:39]} Qxb2 {[%emt 0:08:42]} 18. Bb3 {[%emt 0:08:39]} Bb4 {[%emt 0:11:20]} 19. Rc1 {[%emt 0:07:01]} Bd5 {[%emt 0:07:21]} 20. Bxd5 {[%emt 0:05:28]} Rxc3 {[%emt 0:01:52]} 21. Qb1 {[%emt 0:03:05]} Rxc1 {[%emt 0:02:38]} 22. Rxc1 {[%emt 0:00:06]} Qxb1 {[%emt 0:00:53]} 23. Rxb1 {[%emt 0:00:04]} Nxd5 {[%emt 0:00:49]} 0-1

[Event "9th Sharjah Cup Women 2018"]
[Site "Sharjah"]
[Date "2018.12.15"]
[Round "3"]
[White "Patil, Mitali"]
[Black "Kulkarni Bhakti"]
[Result "0-1"]
[ECO "C01"]
[WhiteElo "2081"]
[BlackElo "2283"]
[Annotator "NA"]
[PlyCount "96"]
[EventDate "2018.12.14"]
[EventType "swiss"]
[EventCountry "UAE"]
[SourceTitle "playchess.com"]
[Source "ChessBase"]
[SourceQuality "1"]
[TimeControl "5400+30"]

1. e4 {[%emt 0:00:00]} e6 {[%emt 0:00:12]} 2. d4 {[%emt 0:00:19]} d5 {[%emt 0:00:14]} 3. exd5 {[%emt 0:00:11]} exd5 {[%emt 0:00:04]} 4. Bd3 {[%emt 0:00:16]} Nc6 {[%emt 0:00:54]} 5. c3 {[%emt 0:00:06]} Bd6 {[%emt 0:00:23]} 6. Qf3 {[%emt 0:00:32]} Nge7 {[%emt 0:01:07]} 7. Ne2 {[%emt 0:01:20]} O-O {[%emt 0:02:06]} 8. Bg5 {[%emt 0:06:21]} Qd7 {[%emt 0:04:55]} 9. h3 {[%emt 0:04:14]} Re8 {[%emt 0:02:31]} 10. Nd2 {[%emt 0:08:21]} Rb8 {[%emt 0:10:20]} 11. O-O {[%emt 0:04:01]} h6 {[%emt 0:09:10]} 12. Bf4 {[%emt 0:01:40]} Nd8 {[%emt 0:03:12]} 13. Qg3 {[%emt 0:04:02]} Bxf4 {[%emt 0:05:50]} 14. Nxf4 {[%emt 0:00:34]} Qd6 {[%emt 0:00:39]} 15. Rfe1 {[%emt 0:03:02]} Ne6 {[%emt 0:01:29]} 16. Nh5 {[%emt 0:01:35]} Qxg3 {[%emt 0:00:27]} 17. Nxg3 {[%emt 0:00:02]} Nf4 {[%emt 0:01:00]} 18. Bc2 {[%emt 0:02:54]} Bd7 {[%emt 0:01:48]} 19. Nf3 {[%emt 0:09:27]} Neg6 {[%emt 0:04:36]} 20. Re3 {[%emt 0:02:54]} Rxe3 {[%emt 0:06:54]} 21. fxe3 {[%emt 0:00:06]} Ne6 {[%emt 0:00:07]} 22. Bxg6 {[%emt 0:04:20]} fxg6 {[%emt 0:03:51]} 23. Ne5 {[%emt 0:00:04]} Be8 {[%emt 0:00:17]} 24. Rf1 {[%emt 0:02:08]} Rd8 {[%emt 0:03:26]} 25. Ne2 {[%emt 0:05:40]} Nf8 {[%emt 0:06:06]} 26. Nf4 {[%emt 0:04:41]} g5 {[%emt 0:01:46]} 27. Nfd3 {[%emt 0:01:24]} b6 {[%emt 0:00:36]} 28. Kf2 {[%emt 0:06:33]} Nh7 {[%emt 0:00:49]} 29. Ke1 {[%emt 0:07:13]} Nf6 {[%emt 0:00:58]} 30. Nb4 {[%emt 0:06:51]} Rd6 {[%emt 0:02:15]} 31. Rf3 {[%emt 0:03:40]} Bb5 {[%emt 0:02:23]} 32. Nbd3 {[%emt 0:02:17]} a5 {[%emt 0:02:45]} 33. Nf2 {[%emt 0:05:42]} Be8 {[%emt 0:01:14]} 34. Nfd3 {[%emt 0:02:34]} Kf8 {[%emt 0:00:54]} 35. Ng4 {[%emt 0:01:36]} Ke7 {[%emt 0:00:24]} 36. Nde5 {[%emt 0:00:27]} Bh5 {[%emt 0:01:08]} 37. Rf1 {[%emt 0:00:36]} Ne4 {[%emt 0:00:43]} 38. Rf5 {[%emt 0:00:29]} Be8 {[%emt 0:03:19]} 39. Nf2 {[%emt 0:00:14]} Nf6 {[%emt 0:00:57]} 40. Kd2 {[%emt 0:00:33]} Bh5 {[%emt 0:00:37]} 41. Neg4 {[%emt 0:00:45]} Bg6 {[%emt 0:00:39]} 42. Rf3 {[%emt 0:00:32]} c5 {[%emt 0:02:10]} 43. Ne5 {[%emt 0:00:03]} Bh7 {[%emt 0:00:34]} 44. Rg3 {[%emt 0:00:37]} Kf8 {[%emt 0:02:33]} 45. Rf3 {[%emt 0:00:06]} Kg8 {[%emt 0:01:04]} 46. Nfd3 {[%emt 0:01:03]} Be4 {[%emt 0:01:18]} 47. Rf2 {[%emt 0:00:08]} c4 {[%emt 0:00:12]} 48. Ne1 {[%emt 0:00:27]} Bb1 {[%emt 0:00:21]} 0-1

[Event "9th Sharjah Cup Women 2018"]
[Site "Sharjah"]
[Date "2018.12.15"]
[Round "3"]
[White "Mezioud, Amina"]
[Black "Zozulia, Anna"]
[Result "1-0"]
[ECO "B06"]
[WhiteElo "2065"]
[BlackElo "2270"]
[Annotator "NA"]
[PlyCount "92"]
[EventDate "2018.12.14"]
[EventType "swiss"]
[EventCountry "UAE"]
[SourceTitle "playchess.com"]
[Source "ChessBase"]
[SourceQuality "1"]
[TimeControl "5400+30"]

1. e4 g6 {[%emt 0:00:10]} 2. d4 {[%emt 0:00:10]} Bg7 {[%emt 0:00:05]} 3. Be3 {[%emt 0:00:19]} d6 {[%emt 0:00:15]} 4. Nc3 {[%emt 0:00:14]} a6 5. Qd2 {[%emt 0:02:25]} Nd7 {[%emt 0:01:38]} 6. Nf3 {[%emt 0:00:30]} b6 {[%emt 0:12:14]} 7. Be2 {[%emt 0:02:14]} Bb7 {[%emt 0:00:34]} 8. Ng5 {[%emt 0:06:18]} h6 {[%emt 0:03:36]} 9. Nh3 {[%emt 0:00:22]} Ngf6 {[%emt 0:06:58]} 10. f3 {[%emt 0:01:35]} c5 {[%emt 0:05:41]} 11. a4 {[%emt 0:05:18]} cxd4 {[%emt 0:04:56]} 12. Bxd4 {[%emt 0:01:25]} Rc8 {[%emt 0:06:58]} 13. Nf2 {[%emt 0:03:29]} h5 {[%emt 0:09:27]} 14. f4 {[%emt 0:02:41]} e5 {[%emt 0:13:44]} 15. Be3 {[%emt 0:02:34]} Nc5 {[%emt 0:03:24]} 16. Bf3 {[%emt 0:06:51]} O-O {[%emt 0:09:23]} 17. O-O {[%emt 0:02:49]} exf4 {[%emt 0:06:31]} 18. Bxf4 {[%emt 0:00:47]} Ne8 {[%emt 0:05:48]} 19. Rfd1 {[%emt 0:08:37]} Ne6 {[%emt 0:00:30]} 20. Be2 {[%emt 0:05:56]} Nc5 {[%emt 0:00:30]} 21. Ra3 {[%emt 0:00:30]} Qe7 {[%emt 0:04:02]} 22. Be3 {[%emt 0:12:11]} Qc7 {[%emt 0:01:44]} 23. Bh6 {[%emt 0:01:36]} Nd7 {[%emt 0:00:51]} 24. Bxg7 {[%emt 0:01:42]} Kxg7 {[%emt 0:00:30]} 25. Qd4+ {[%emt 0:01:37]} Ne5 {[%emt 0:00:30]} 26. Bxh5 {[%emt 0:00:30]} Qc5 {[%emt 0:01:59]} 27. Be2 {[%emt 0:04:52]} Qxd4 {[%emt 0:00:49]} 28. Rxd4 Nd7 {[%emt 0:00:39]} 29. Bd1 {[%emt 0:01:48]} Nc5 {[%emt 0:00:26]} 30. Nd5 {[%emt 0:02:43]} Bxd5 {[%emt 0:00:28]} 31. Rxd5 {[%emt 0:00:35]} Rc6 {[%emt 0:00:35]} 32. b4 {[%emt 0:01:23]} Nd7 {[%emt 0:00:12]} 33. Be2 {[%emt 0:04:14]} Rxc2 {[%emt 0:00:43]} 34. Bxa6 {[%emt 0:01:04]} Nc7 {[%emt 0:00:29]} 35. Rxd6 {[%emt 0:01:19]} Nxa6 {[%emt 0:00:35]} 36. Rxd7 {[%emt 0:00:24]} Nxb4 {[%emt 0:00:09]} 37. h3 {[%emt 0:00:27]} Na6 {[%emt 0:00:51]} 38. Rd6 {[%emt 0:02:25]} Nc5 {[%emt 0:00:31]} 39. Rxb6 {[%emt 0:00:54]} Rc4 {[%emt 0:00:21]} 40. a5 {[%emt 0:01:36]} Nxe4 {[%emt 0:00:15]} 41. Nxe4 {[%emt 0:01:33]} Rxe4 {[%emt 0:00:03]} 42. Rb7 {[%emt 0:02:36]} Ra8 {[%emt 0:01:20]} 43. a6 {[%emt 0:00:43]} Kf8 {[%emt 0:00:17]} 44. a7 {[%emt 0:00:40]} Re7 {[%emt 0:00:03]} 45. Rb8+ {[%emt 0:00:24]} Re8 {[%emt 0:00:03]} 46. Rxe8+ {[%emt 0:00:37]} Kxe8 {[%emt 0:00:04]} 1-0

[Event "9th Sharjah Cup Women 2018"]
[Site "Sharjah"]
[Date "2018.12.15"]
[Round "3"]
[White "Samaganova, Alexandra"]
[Black "Kiolbasa, Oliwia"]
[Result "0-1"]
[ECO "A10"]
[WhiteElo "2038"]
[BlackElo "2244"]
[Annotator "NA"]
[PlyCount "50"]
[EventDate "2018.12.14"]
[EventType "swiss"]
[EventCountry "UAE"]
[SourceTitle "playchess.com"]
[Source "ChessBase"]
[SourceQuality "1"]
[TimeControl "5400+30"]

1. c4 {[%emt 0:00:00]} b6 {[%emt 0:00:00]} 2. Nf3 {[%emt 0:00:06]} Bb7 {[%emt 0:00:00]} 3. e3 {[%emt 0:00:37]} Nf6 {[%emt 0:00:15]} 4. b3 {[%emt 0:00:59]} e6 {[%emt 0:01:26]} 5. Bb2 {[%emt 0:00:36]} d5 {[%emt 0:02:02]} 6. Nc3 {[%emt 0:01:20]} a6 {[%emt 0:00:27]} 7. Be2 {[%emt 0:05:24]} Bd6 {[%emt 0:00:42]} 8. O-O {[%emt 0:00:34]} O-O {[%emt 0:00:11]} 9. Qc2 {[%emt 0:01:30]} Nbd7 {[%emt 0:02:04]} 10. Rfd1 {[%emt 0:06:41]} Qe7 {[%emt 0:06:55]} 11. Rac1 {[%emt 0:04:18]} c5 {[%emt 0:01:18]} 12. d4 {[%emt 0:06:52]} dxc4 {[%emt 0:00:14]} 13. bxc4 {[%emt 0:00:46]} cxd4 {[%emt 0:00:25]} 14. exd4 {[%emt 0:10:59]} Rac8 {[%emt 0:03:35]} 15. Qb3 {[%emt 0:04:15]} Rfd8 {[%emt 0:06:39]} 16. Na4 {[%emt 0:09:31]} b5 {[%emt 0:06:42]} 17. cxb5 {[%emt 0:12:53]} Bd5 {[%emt 0:00:22]} 18. Qd3 {[%emt 0:00:34]} axb5 {[%emt 0:01:28]} 19. Rxc8 {[%emt 0:11:11]} Rxc8 {[%emt 0:00:22]} 20. Qxb5 {[%emt 0:00:40]} Rb8 {[%emt 0:01:32]} 21. Qa6 {[%emt 0:02:25]} Ra8 {[%emt 0:13:52]} 22. Qb5 {[%emt 0:00:30]} Ne8 {[%emt 0:21:21]} 23. Rc1 {[%emt 0:16:33]} Nc7 {[%emt 0:01:29]} 24. Rxc7 {[%emt 0:00:28]} Bxc7 {[%emt 0:00:10]} 25. Bc1 {[%emt 0:02:14]} Ra5 {[%emt 0:01:02]} 0-1